Cogmind - Beta 13 @@@ ROGUE MODE // 2024.05.02 @ 19:39:13 Player: Bzilon Result: Destroyed by H-61 Shepherd with Heavy Assault Cannon Performance ------------- Evolutions (2) 1000 Regions Visited (5) 1000 Robots Destroyed (43) 215 Value Destroyed (1153) 1153 Prototype IDs (1) 20 Alien Tech Used (0) 0 Bonus (0) 0 TOTAL SCORE: 3388 Bonus ------- None Cogmind --------- Core Integrity 0/550 Matter 280/300 Energy 99/100 System Corruption 0% Temperature Warm (193) Movement Walking (450) Ox4 Location -8/Materials Parts ------- > --- POWER (1) -------- (None) > --- PROPULSION (4) --- VSS Leg > --- UTILITY (3) ------ High-capacity Storage Unit Hardened Medium Armor Plating > --- WEAPON (3) ------- Autogun > --- INVENTORY (20) --- Light Ion Engine Light Ion Engine Fission Core Heat Sink Improved Heat Sink Medium Matter Pod (100) Hardlight Generator Hacking Suite High-powered Tractor Beam Shotgun Shotgun Axe Peak State ------------ > --- POWER ------------ Light Ion Engine > --- PROPULSION ------- Light Treads Armored Treads Carbon-fiber Leg Aerolev Unit > --- UTILITY ---------- Heat Sink High-capacity Storage Unit Trap Scanner > --- WEAPON ----------- Particle Gun Heavy Assault Rifle High-powered Shotgun > --- INVENTORY -------- Light Ion Engine Fission Core Heat Sink Medium Matter Pod Recoil Stabilizer Hardlight Generator Hacking Suite High-powered Tractor Beam Particle Gun Heavy Assault Rifle Autogun Shotgun Axe [Rating: 27] Favorites ----------- Power Light Nuclear Core Engine Light Ion Engine Power Core Light Nuclear Core Propulsion Aluminum Leg Treads Armored Treads Leg Aluminum Leg Wheel Wheel Hover Unit Aerolev Unit Utility Structural Scanner Device Structural Scanner Storage High-capacity Storage Unit Protection Hardened Medium Armor Plating Weapon Beam Rifle Energy Gun Beam Rifle Ballistic Gun Heavy Assault Rifle Build | -11 -10 -10 -10 -9 -8 ------- Run | Yrd Mat Min Exi Min Mat Slots Evolved 4 | . . . . . 4 Power . | . . . . . . Propulsion 2 | . . . . . 2 Utility 1 | . . . . . 1 Weapon 1 | . . . . . 1 Parts Attached 46 | 7 4 1 1 . 33 Power 6 | 1 . 1 . . 4 Engine 4 | 1 . . . . 3 Core 2 | . . 1 . . 1 Reactor . | . . . . . . Propulsion 13 | 2 . . . . 11 Treads 2 | . . . . . 2 Leg 6 | 2 . . . . 4 Wheel 4 | . . . . . 4 Hover 1 | . . . . . 1 Flight . | . . . . . . Utility 10 | 1 2 . 1 . 6 Device 6 | . 1 . . . 5 Storage 3 | 1 1 . 1 . . Processor . | . . . . . . Hackware . | . . . . . . Protection 1 | . . . . . 1 Artifact . | . . . . . . Weapon 17 | 3 2 . . . 12 Energy Gun 9 | 2 2 . . . 5 Energy Cannon . | . . . . . . Ballistic Gun 8 | 1 . . . . 7 Ballistic Cannon . | . . . . . . Launcher . | . . . . . . Special Weapon . | . . . . . . Impact Weapon . | . . . . . . Slashing Weapon . | . . . . . . Piercing Weapon . | . . . . . . Special Melee Weapon . | . . . . . . Unidentified Prototypes 1 | . . . . . 1 Parts Lost 31 | . . . . . 31 Power 2 | . . . . . 2 Propulsion 12 | . . . . . 12 Utility 5 | . . . . . 5 Weapon 12 | . . . . . 12 Highest Loss Streak 9 | . . . . . 9 To Critical Strikes . | . . . . . . Average Slot Usage (%) 90 | . 99 100 100 100 81 Engine 4 | . 14 3 . . 5 Core 6 | . . 10 14 14 2 Treads 3 | . . . . . 7 Leg 17 | . 28 28 28 28 6 Wheel 2 | . . . . . 5 Hover 1 | . . . . . 4 Device 14 | . 13 14 14 14 15 Storage 11 | . 14 14 14 14 9 Energy Gun 20 | . 25 28 28 28 12 Ballistic Gun 5 | . 2 . . . 10 Naked Turns . | . . . . . . Heaviest Build 58 | 14 22 22 52 52 58 Greatest Support 48 | 20 20 20 20 20 48 Greatest Overweight (x) 17 | 1 1 1 2 2 17 Average Overweight (x) 1 | . . 1 1 2 2 Largest Inventory Capacity 20 | 8 10 10 20 20 20 Average Capacity 15 | 7 8 10 11 20 20 Most Carried 15 | 4 5 10 10 10 15 Average Carried 8 | 1 3 9 9 10 8 Final Capacity 20 | 8 10 10 20 20 20 Final Carried 12 | 1 5 10 10 10 12 Class Distribution -------------------- 67% | Mutant 21% | Scavenger-Skirmisher 6% | Scavenger-Tank Dominant Class ---------------- Mutant | -10/Materials Mutant | -10/Mines Mutant | -10/Exiles Mutant | -9/Mines Scavenger-Skirmisher | -8/Materials Resources | -11 -10 -10 -10 -9 -8 ----------- Run | Yrd Mat Min Exi Min Mat Matter Collected 892 | 203 77 45 20 . 547 Remotely . | . . . . . . Salvage Created 1335 | 50 172 92 . . 1021 Parts 86 | 5 11 5 . . 65 Haulers Intercepted . | . . . . . . Recyclers Shooed . | . . . . . . Parts Field Recycled . | . . . . . . Retrieved Matter . | . . . . . . Parts Self-Destructed . | . . . . . . Prevented . | . . . . . . Kills | -11 -10 -10 -10 -9 -8 ------- Run | Yrd Mat Min Exi Min Mat Combat Hostiles Destroyed 34 | . 8 2 . . 24 Guns 33 | . 8 1 . . 24 Classes Destroyed 9 | 1 2 . . . 6 Worker 3 | . . . . . 3 Builder 1 | . . . . . 1 Tunneler 3 | 2 . . . . 1 Watcher 2 | . . . . . 2 Swarmer 14 | . 6 . . . 8 Grunt 9 | . 2 2 . . 5 Sentry 8 | . . . . . 8 Specialist 1 | . . . . . 1 Hunter 2 | . . . . . 2 Best Kill Streak 4 | 2 3 4 . . 4 Combat Bots Only 4 | . 3 4 . . 4 Max Kills in Single Turn 2 | 1 2 1 . . 2 Gunslinging 1 | . 1 . . . 1 Exploded . | . . . . . . Melee . | . . . . . . Uniques/NPCs Destroyed . | . . . . . . Combat | -11 -10 -10 -10 -9 -8 -------- Run | Yrd Mat Min Exi Min Mat Hostile Shots Fired 359 | . 54 5 . . 300 Missed 118 | . 18 3 . . 97 Damage Taken 3562 | . 301 25 . . 3236 Core 621 | . 43 . . . 578 Absorbed by Shields 8 | . . . . . 8 Core Remaining (%) 91 | 100 . . . 82 . Volleys Fired 130 | 5 19 3 . . 103 Largest 3 | 2 2 2 . . 3 Hottest 177 | 70 112 112 . . 177 Shots Fired 291 | 10 38 6 . . 237 Gun 291 | 10 38 6 . . 237 Cannon . | . . . . . . Launcher . | . . . . . . Special . | . . . . . . Kinetic 130 | 5 . . . . 125 Thermal 146 | 5 38 6 . . 97 Explosive . | . . . . . . Electromagnetic 15 | . . . . . 15 Robot Hit Streak 17 | 3 5 3 . . 17 Robot Miss Streak 11 | 2 8 1 . . 11 Penetration Max . | . . . . . . Secondary Targets 12 | . 2 . . . 10 Max Gunslinging Chain 1 | . 1 . . . 1 Shots Hit Robots 177 | 5 15 4 . . 153 Core Hits 77 | 2 9 3 . . 63 Critical Kills . | . . . . . . Critical Parts Destroyed 2 | . . . . . 2 Critical Strikes 11 | . 3 2 . . 6 Burn 9 | . 3 2 . . 4 Destroy 2 | . . . . . 2 Melee Attacks . | . . . . . . Impact . | . . . . . . Slashing . | . . . . . . Piercing . | . . . . . . Sneak Attacks . | . . . . . . Combat Hostiles . | . . . . . . Follow-up Attacks . | . . . . . . Damage Inflicted 2644 | 76 213 72 . . 2283 Guns 2562 | 76 213 72 . . 2201 Cannons . | . . . . . . Explosions 36 | . . . . . 36 Melee . | . . . . . . Ramming 46 | . . . . . 46 Kinetic 1283 | 50 . . . . 1233 Thermal 1194 | 26 213 72 . . 883 Explosive . | . . . . . . Electromagnetic 121 | . . . . . 121 Impact . | . . . . . . Slashing . | . . . . . . Piercing . | . . . . . . Highest Corruption 1 | . 1 1 1 1 . Average Corruption 1 | . 1 1 1 1 . Corruption Purged . | . . . . . . Corruption Blocked . | . . . . . . Effects 9 | . 1 2 6 . . Message Errors 4 | . . 1 3 . . Heat Flow Errors 2 | . . 1 1 . . Energy Discharges 2 | . 1 . 1 . . Data Loss (minor) 1 | . . . 1 . . Overload Shots . | . . . . . . Overflow Damage 75 | . . . . . 75 Projectiles . | . . . . . . Explosions 75 | . . . . . 75 Melee . | . . . . . . Knockbacks 1 | . . . . . 1 Impact 1 | . . . . . 1 Kinetic . | . . . . . . Secondary . | . . . . . . Self-Inflicted Damage 180 | . . . . . 180 Shots 2 | . . . . . 2 Rammed 5 | . . . . . 5 Targets Rammed 6 | . . . . . 6 Kicked 1 | . . . . . 1 Crushed . | . . . . . . Highest Temperature 429 | 27 429 168 271 . 242 Average Temperature 92 | 11 162 79 141 . 60 Received Heat Transfer 724 | . 24 15 . . 685 Effects 4 | . 4 . . . . Shutdowns 1 | . 1 . . . . Energy Bleed 3 | . 3 . . . . Siege Activations . | . . . . . . Robots Corrupted . | . . . . . . Combat Hostiles . | . . . . . . Parts Fried 4 | . . . . . 4 Impact Corruptions . | . . . . . . Robots Melted 1 | . . 1 . . . Combat Hostiles 1 | . . 1 . . . Parts Melted 12 | . 4 2 . . 6 Heat Transferred 3787 | 74 777 333 . . 2603 Parts Sabotaged . | . . . . . . Parts Stolen . | . . . . . . Parts Stripped . | . . . . . . Power Chain Reactions . | . . . . . . Alert | -11 -10 -10 -10 -9 -8 ------- Run | Yrd Mat Min Exi Min Mat Peak Influence 283 | 10 202 128 . . 283 Initial 78 | . 6 78 . . . Average 147 | 2 93 126 . . 178 Maximum Alert Level 1 | . 1 . . . 1 Low Security (%) 61 | 100 97 100 . 100 47 Level 1 38 | . 2 . . . 52 Level 2 . | . . . . . . Level 3 . | . . . . . . Level 4 . | . . . . . . Level 5 . | . . . . . . High Security . | . . . . . . Max Security . | . . . . . . Squads Dispatched 6 | . . . . . 6 Investigation 1 | . . . . . 1 Extermination . | . . . . . . Reinforcement 2 | . . . . . 2 Assault . | . . . . . . Garrison 3 | . . . . . 3 Intercept . | . . . . . . Searches Triggered . | . . . . . . Construction Impeded . | . . . . . . Haulers Reinforced . | . . . . . . Active Scanning Responses . | . . . . . . Cargo Convoy Interrupts . | . . . . . . Stealth | -11 -10 -10 -10 -9 -8 --------- Run | Yrd Mat Min Exi Min Mat Distress Signals 4 | . . . . . 4 Communications Jammed . | . . . . . . Distress Signals . | . . . . . . Times Spotted 55 | . 8 2 . . 45 Peak Tracking Total 5 | . 4 2 . . 5 Tactical Retreats 2 | . . . . . 2 Traps | -11 -10 -10 -10 -9 -8 ------- Run | Yrd Mat Min Exi Min Mat Traps Triggered 1 | . . . . . 1 Indirectly . | . . . . . . Trap Hack Attempts . | . . . . . . Triggered . | . . . . . . Disarmed . | . . . . . . Reprogrammed . | . . . . . . Reused . | . . . . . . Traps Extracted . | . . . . . . Installed . | . . . . . . Triggered . | . . . . . . Machines | -11 -10 -10 -10 -9 -8 ---------- Run | Yrd Mat Min Exi Min Mat Machines Disabled 3 | . 1 . . . 2 Max in Single Turn 2 | . 1 . . . 2 Machines Repaired . | . . . . . . Machines Dismantled . | . . . . . . Machines Sabotaged . | . . . . . . Overloaded Fab Kills . | . . . . . . Hacking | -11 -10 -10 -10 -9 -8 --------- Run | Yrd Mat Min Exi Min Mat Machines Accessed 4 | . 1 . 1 . 2 Terminals 2 | . 1 . . . 1 Fabricators . | . . . . . . Repair Stations . | . . . . . . Recycling Units . | . . . . . . Scanalyzers . | . . . . . . Garrison Access 1 | . . . . . 1 Total Hacks 31 | . 3 . 23 . 5 Successful 29 | . 3 . 23 . 3 Failed 2 | . . . . . 2 Catastrophic . | . . . . . . Database Lockouts . | . . . . . . Manual . | . . . . . . Terminals 6 | . 3 . . . 3 Fabricators . | . . . . . . Repair Stations . | . . . . . . Recycling Units . | . . . . . . Scanalyzers . | . . . . . . Garrison Access 2 | . . . . . 2 Terminal Hacks 28 | . 3 . 23 . 2 Record 28 | . 3 . 23 . 2 Fabricator Hacks . | . . . . . . Repair Station Hacks . | . . . . . . Recycling Unit Hacks . | . . . . . . Scanalyzer . | . . . . . . Garrison Access Hacks 1 | . . . . . 1 Unlock Access 1 | . . . . . 1 Unauthorized Hacks . | . . . . . . Terminals . | . . . . . . Fabricators . | . . . . . . Repair Stations . | . . . . . . Recycling Units . | . . . . . . Scanalyzers . | . . . . . . Garrison Access . | . . . . . . Data Cores Recovered . | . . . . . . Used . | . . . . . . Hacking Detections 3 | . 1 . . . 2 Full Trace Events 2 | . 1 . . . 1 Feedback Events 1 | . 1 . . . . Corruption 1 | . 1 . . . . Feedback Blocked . | . . . . . . Robot Schematics Acquired . | . . . . . . Robots Built . | . . . . . . Authchips . | . . . . . . Time . | . . . . . . Total Robot Build Rating . | . . . . . . Part Schematics Acquired . | . . . . . . Parts Built . | . . . . . . Authchips . | . . . . . . Time . | . . . . . . Total Part Build Rating . | . . . . . . Parts Repaired . | . . . . . . Time . | . . . . . . Parts Recycled . | . . . . . . Recycled Matter . | . . . . . . Retrieved Matter . | . . . . . . Retrieved Components . | . . . . . . Parts Scanalyzed . | . . . . . . Part Schematics Acquired . | . . . . . . Parts Damaged . | . . . . . . Bothacking | -11 -10 -10 -10 -9 -8 ------------ Run | Yrd Mat Min Exi Min Mat Used RIF Installer . | . . . . . . Robots Hacked . | . . . . . . Non-combat . | . . . . . . Combat . | . . . . . . Robot Hacks Applied . | . . . . . . Relay Couplers Released . | . . . . . . Fabnet Peak Effective % . | . . . . . . Robots Rewired . | . . . . . . Allies Hacked . | . . . . . . Hacks Repelled . | . . . . . . Allies | -11 -10 -10 -10 -9 -8 -------- Run | Yrd Mat Min Exi Min Mat Total Allies . | . . . . . . Largest Group . | . . . . . . Highest-Rated Group . | . . . . . . Highest-Rated Ally . | . . . . . . Total Orders . | . . . . . . Ally Attacks . | . . . . . . Total Damage . | . . . . . . Kills . | . . . . . . Allies Corrupted . | . . . . . . Allies Melted . | . . . . . . Intel | -11 -10 -10 -10 -9 -8 ------- Run | Yrd Mat Min Exi Min Mat Robot Analysis Total . | . . . . . . Derelict Logs Recovered . | . . . . . . Drone Launches . | . . . . . . Drone Recoveries . | . . . . . . Exploration | -11 -10 -10 -10 -9 -8 ------------- Run | Yrd Mat Min Exi Min Mat Turns Passed 2947 | 78 224 120 1012 115 1398 Spaces Moved 1217 | 41 125 56 506 45 444 Core 31 | 6 . . . . 25 Treads 191 | . . . . . 191 Legs 801 | 35 125 56 506 45 34 Wheels 194 | . . . . . 194 Hover . | . . . . . . Flight . | . . . . . . Fastest Speed 50 | 50 120 190 190 260 98 Average Speed 199 | 120 126 190 199 260 221 Slowest Speed 900 | 190 190 190 260 260 900 Overloaded Moves . | . . . . . . Propulsion Burnouts . | . . . . . . Robots Hopped . | . . . . . . Cave-ins Triggered . | . . . . . . Exploration Rate (%) 28 | 3 24 11 79 19 37 Regions Visited 5 Branch Regions 3 Pre-discovered Areas 1 | . . . 1 . . Known Exits Taken . | . . . . . . Unknown Exits Taken 5 | 1 1 1 1 1 . Scrap Searched . | . . . . . . Spaces Dug . | . . . . . . Terrain Destroyed 40 | . . . . . 40 Melee . | . . . . . . Projectile . | . . . . . . AOE 40 | . . . . . 40 Terrain Rammed . | . . . . . . Walls Destroyed . | . . . . . . Machines Disabled . | . . . . . . Actions | -11 -10 -10 -10 -9 -8 --------- Run | Yrd Mat Min Exi Min Mat Total 1484 | 59 152 64 512 44 653 Wait 36 | . . . . . 36 Move 1212 | 40 124 55 505 44 444 Hop . | . . . . . . Pick Up 51 | 7 5 5 3 . 31 Fast Attach . | . . . . . . Attach 36 | 6 1 . . . 29 Detach . | . . . . . . Swap 10 | 1 3 1 1 . 4 Drop 3 | . . . 3 . . Fire 130 | 5 19 3 . . 103 Melee . | . . . . . . Ram 1 | . . . . . 1 Kick 1 | . . . . . 1 Crush 4 | . . . . . 4 Escape Stasis . | . . . . . . Rewire . | . . . . . . Trap . | . . . . . . Miscellaneous . | . . . . . . Route ------- -11/Scrapyard -10/Materials -10/Mines -10/Exiles (discovered 2 exits: [*Min x2]) -9/Mines -8/Materials (discovered 2 exits: [*Fac] / Gar) History --------- Turn | Location | Event 34 | -11/Scrapyard | Discovered new exit (range 15) 79 | -11/Scrapyard | Entered Materials 260 | -10/Materials | Discovered new exit (range 7) 303 | -10/Materials | Entered Mines 310 | -10/Mines | Build established: Mutant 324 | -10/Mines | Met a Derelict bent on vengeance 410 | -10/Mines | Deemed a non-threat by the Exiles lab entrance 410 | -10/Mines | Discovered new exit (range 6) 423 | -10/Mines | Entered Exiles 487 | -10/Exiles | Discovered new exit (range 15) 532 | -10/Exiles | Met 8R-AWN 576 | -10/Exiles | Met EX-HEX 665 | -10/Exiles | Met EX-DEC 735 | -10/Exiles | Visited The Gauntlet 1117 | -10/Exiles | Learned location of Zion (-6) 1393 | -10/Exiles | Discovered new exit (range 12) 1435 | -10/Exiles | Entered Mines 1490 | -9/Mines | Discovered new exit (range 14) 1550 | -9/Mines | Entered Materials 1550 | -8/Materials | Evolved 4 slots: Propulsion x2, Utility x1, Weapon x1 1705 | -8/Materials | Lost 6 parts (4n2w) 2100 | -8/Materials | Garrison activated, responded to threat 2168 | -8/Materials | Lost 9 parts (1p3n2u3w) 2354 | -8/Materials | Identified exit to Garrison 2796 | -8/Materials | Build established: Scavenger-Skirmisher 2806 | -8/Materials | Core integrity fell below 50% 2862 | -8/Materials | Lost 8 parts (4n2u2w) 2910 | -8/Materials | Discovered new exit (range 9) 2933 | -8/Materials | Core integrity fell below 20% 2948 | -8/Materials | Destroyed by H-61 Shepherd with Heavy Assault Cannon Last Messages --------------- W-25 Informer system terminally corrupted. Imp. Signal Interpreter fried. Imp. Hover Unit fried. Visual Processing Unit fried. Imp. Sensor Array fried. K-01 Serf collects debris. U-05 Engineer builds a Wall. Recoil Stabilizer destroyed. Knocked back. Acquired 28 matter. Particle Gun destroyed. Knocked back. Penetrated by Slug. Knocked back. T-07 Excavator destroyed. Acquired 4 matter. Hvy. Assault Rifle destroyed. K-01 Serf collects debris. Nuclear Core blasted off. K-01 Serf collects debris. Map ----- +----------------------------------------------------+ | ?????????????????????????????????????????????????? | | ?????????????????????????????????????????????????? | | ?????????????????????????????????????????????????? | | ?????????????????????????????????????????????????? | | ?????????????????????????????????????????????????? | | ?????????????????????????????????????????????????? | | ?????????????????????????????????????????????????? | | ?????????????????????????????????????????????????? | | ?????????????????????????????????????????????????? | | ????????????????????????????????? ?????????????? | | ?????????????????????????????? #????????????? | | ?????????????????????????????? #????????????? | | ?????????????????????????????? +????????????? | | ?????????????????????????????? #????????????? | | ?????????????????????????????? #????????????? | | ?????????????????????????????? #????????????? | | #????????????????????????????# #????????????? | | #??????????????????########### #????????????? | | #??????????????????# != # #????????????? | | #??????????????????# != =# #????????????? | | ###############????? # #####????????? | | # #??????? ?T" # !!#????????? | | # #???????##+#####% !!#????????? | | # #???????#| % = g [[#????????? | | # #########k% %*! g [[#????????? | | / + w%t@%* %H u ==#????????? | | # ################ ==#????????? | | ###############??????????????# #####????????? | | # #?????????????????# #????????????? | | # #?????##########??# "#???????????? | | + #?????#= """ #??# ??????????? | | # ##?????# """"" #??# < ?????????? | | ################# """"" #??# #????????? | | # ### ##### # """"" #???########????????? | | # ### # """ #???????????????????? | | # T + #???????????????????? | | ##### # #???????????????????? | | ????# ##### # #???????????????????? | | ????#######???####### ! #???????????????????? | | ????????????????????##########???????????????????? | | | | | | | | | | | | | | | | | | | | | +----------------------------------------------------+ Best States ------------- Heat Dissipation 45 Energy Generation 14 Energy Capacity 265 Matter Stores 300 Matter Capacity 300 Sight Range 16 Terrain Scan Density 10 Armor Coverage 225 Evasion (%) 55 Recoil Reduction 4 Item Schematics ----------------- None Robot Schematics ------------------ None Fabricated ------------ Nothing Alien Tech Used ----------------- None Achievements -------------- It's Just You Librarian Troublemaker Challenges ------------ None Game ------ Seed ConstructGreatPod Manual? 0 Play Time 00:30:59 Cumulative 3.8 hours Start 2024.05.02 @ 19:08:25 End 2024.05.02 @ 19:39:13 Sessions 1 Manual Loads 0 Difficulty Rogue Special Mode None Game No. 5 Rogue 5 Adventurer 0 Explorer 0 Win Type - Total 0 Types 0/0/0/0/0/0/0/0/0 Lore% 9 Gallery% 7 Achievement% 6 Wizard Run 0 Options --------- Layout 1 ASCII 0 Keyboard 0 Movement Arrows Keybinds 0 Fullscreen 2 Font 24/Crisp Map View 25x17 Zoom Use 49% Tactical HUD 0 Map Filters NONE Filters NONE Steam 1 RUN: f7d274a8-3107-4cac-9e6e-6e93fd01751c